fUST/lending_fUST_20250614
["ID","MTS","AMOUNT","RATE_DAILY","PERIOD"]
[365771466,1749901832787,-460.0,0.00023287,4]
[365771467,1749901832796,-460.0,0.00023287,4]
[365771468,1749901832805,-460.0,0.00023287,4]
[365771469,1749901832814,-287.1928411,0.00023315,2]
[365771470,1749901832823,-571.3360607,0.00023315,2]
[365771471,1749901832832,-971.56084324,0.00023348,9]
[365771472,1749901832842,-160.0,0.00023354,2]
[365771473,1749901832851,-229.82479369,0.00023354,2]
[365771474,1749901832860,-160.0,0.00023354,2]
[365771475,1749901832869,-835.41710878,0.00023354,2]
[365771476,1749901832878,-160.0,0.00023354,2]
[365771477,1749901832887,-424.40141186,0.00023354,2]
[365771478,1749901832897,-213.28201367,0.00023354,2]
[365771479,1749901832906,-191.0,0.00023445,2]
[365771480,1749901832916,-971.56084324,0.00023452,9]
[365771481,1749901832925,-2514.39,0.00023456,2]
[365771482,1749901832935,-971.56084324,0.00023555,9]
[365771483,1749901832944,-191.0,0.00023557,2]
[365771484,1749901832955,-460.0,0.00023561,4]
[365771485,1749901832964,-460.0,0.00023561,4]
[365771486,1749901832973,-717.77,0.00023561,4]
[365771487,1749901832982,-183.39040263,0.00023561,4]
[365771488,1749901832993,-460.0,0.00023561,4]
[365771489,1749901833002,-460.0,0.00023561,4]
[365771490,1749901833011,-460.0,0.00023561,4]
[365771491,1749901833021,-348.95,0.00023564,10]
[365771492,1749901833030,-160.0,0.00023574,2]
[365771493,1749901833040,-845.10789306,0.00023574,2]
[365771494,1749901833050,-191.0,0.00023593,2]
[365771495,1749901833059,-1500.0,0.00023616,2]
[365771496,1749901833068,-600.0,0.00023631,2]
[365771497,1749901833077,-971.56084324,0.00023659,9]
[365771498,1749901833087,-200.0,0.00023677,2]
[365771499,1749901833096,-215.0738,0.000237,2]
[365771500,1749901833106,-964.0,0.00023724,2]
[365771501,1749901833115,-653.0,0.00023724,2]
[365771502,1749901833126,-2160.0,0.00023724,2]
[365771503,1749901833135,-150.0,0.00023724,2]
[365771504,1749901833145,-468.858,0.00023724,2]
[365771505,1749901833154,-162.55787741,0.00023746,2]
[365771506,1749901833163,-971.56084324,0.00023762,9]
[365771507,1749901833173,-420.0,0.00023799,2]
[365771508,1749901833182,-1997.75,0.000238,2]
[365771509,1749901833191,-3153.02448077,0.000238,2]
[365771512,1749901837874,-351.31794608,0.000238,2]
[365771513,1749901837883,-460.0,0.00023835,4]
[365771514,1749901837893,-460.0,0.00023835,4]
[365771515,1749901837902,-717.77,0.00023835,4]
[365771516,1749901837911,-321.15485179,0.00023835,4]
[365771517,1749901837921,-460.0,0.00023835,4]
[365771518,1749901837931,-460.0,0.00023835,4]
[365771520,1749901837940,-500.0,0.00023865,2]
[365771521,1749901837950,-500.0,0.00023865,2]
[365771522,1749901837959,-500.0,0.00023865,2]
[365771523,1749901837969,-500.0,0.00023865,2]
[365771524,1749901837979,-500.0,0.00023865,2]
[365771525,1749901837989,-500.0,0.00023865,2]
[365771526,1749901838000,-500.0,0.00023865,2]
[365771527,1749901838010,-500.0,0.00023865,2]
[365771528,1749901838020,-500.0,0.00023865,2]
[365771529,1749901838029,-971.56084324,0.00023866,10]
[365771531,1749901838039,-500.0,0.00023873,2]
[365771533,1749901838048,-500.0,0.00023873,2]
[365771534,1749901838058,-501.54253158,0.00023873,2]
[365771535,1749901838067,-500.0,0.00023873,2]
[365771536,1749901838076,-500.0,0.00023873,2]
[365771537,1749901838086,-500.0,0.00023873,2]
[365771538,1749901838095,-64249.93145688,0.000239,7]
[365771698,1749902263157,365.759409,0.00013699,2]
[365771726,1749902826122,-951.13769293,0.00019986,2]
[365771727,1749902826144,-1740.0,0.0002,2]
[365771728,1749902826165,-365.759409,0.00020187,2]
[365771729,1749902826186,-203.2476799,0.00020916,2]
[365771730,1749902826207,-1240.94,0.00021393,2]
[365771731,1749902826228,-219.19154049,0.00021836,5]
[365771732,1749902831074,-1.74359841,0.00021836,5]
[365771733,1749902831101,-1194.27332273,0.000219,6]
[365771734,1749902831124,-240.03117635,0.00021917,4]
[365771735,1749902831146,-300.0,0.00021931,2]
[365771736,1749902831170,-300.0,0.00021931,2]
[365771737,1749902831194,-54.27267763,0.00021932,4]
[365771738,1749902833124,-405.72732237,0.00021932,4]
[365771739,1749902833147,-460.0,0.00021932,4]
[365771740,1749902833170,-687.4,0.00021932,4]
[365771741,1749902833194,-460.0,0.00021932,4]
[365771742,1749902833216,-132.59626886,0.00021932,4]
[365771743,1749902846091,-327.40373114,0.00021932,4]
[365771744,1749902846112,-460.0,0.00021932,4]
[365771745,1749902846135,-460.0,0.00021932,4]
[365771746,1749902846157,-460.0,0.00021932,4]
[365771747,1749902846180,-460.0,0.00021932,4]
[365771748,1749902846203,-19.42183004,0.00021932,4]
[365771752,1749902946122,-160.0,0.00019982,2]
[365771753,1749902950110,-246.0055508,0.00021,5]
[365771754,1749902950141,-300.0,0.00021009,2]
[365771755,1749902950170,-1485.61276563,0.0002101,2]
[365771793,1749903032111,-5258.43911751,0.0002101,2]
[365771915,1749903038047,-4381.83950086,0.0002101,2]
[365771916,1749903038057,-300.0,0.00021335,2]
[365771917,1749903038067,-1243.2,0.00021336,2]
[365771918,1749903038076,-1154.46421175,0.000219,6]
[365771919,1749903038086,-460.0,0.00021917,4]
[365771920,1749903038096,-658.76,0.00021917,4]
[365771921,1749903038105,-460.0,0.00021917,4]
[365771922,1749903038115,-460.0,0.00021917,4]
[365771923,1749903038125,-479.3,0.00021917,4]
[365771924,1749903038134,-460.0,0.00021917,4]
[365771925,1749903038144,-440.57816996,0.00021917,4]
[365771926,1749903038156,-474.05,0.00021932,4]
[365771927,1749903038166,-460.0,0.00021932,4]
[365771928,1749903038175,-460.0,0.00021932,4]
[365771929,1749903038185,-460.0,0.00021932,4]
[365771930,1749903038194,-460.0,0.00021932,4]
[365771931,1749903038204,-460.0,0.00021932,4]
[365771932,1749903038214,-460.0,0.00021932,4]
[365771933,1749903038223,-460.0,0.00021932,4]
[365771934,1749903038235,-460.0,0.00021932,4]
[365771935,1749903038244,-460.0,0.00021932,4]
[365771936,1749903038254,-460.0,0.00021932,4]
[365771937,1749903038264,-460.0,0.00021932,4]
[365771938,1749903038273,-460.0,0.00021932,4]
[365771939,1749903038284,-393.09157571,0.00021932,4]
[365771940,1749903038294,-460.0,0.00021932,4]
[365771941,1749903038303,-460.0,0.00021932,4]
[365771942,1749903038313,-460.0,0.00021932,4]
[365771943,1749903038322,-160.0,0.00021932,2]
[365771944,1749903038332,-845.10789306,0.00021932,2]
[365771945,1749903038342,-229.82479369,0.00021932,2]
[365771946,1749903038351,-835.41710878,0.00021932,2]
[365771947,1749903038362,-160.0,0.00021932,2]
[365771948,1749903038372,-160.0,0.00021933,2]
[365771949,1749903038382,-160.0,0.00021933,2]
[365771950,1749903038391,-12533.30537164,0.00021933,2]
[365771951,1749903038401,-383.97399058,0.00021933,4]
[365771952,1749903038410,-460.0,0.00021933,4]
[365771953,1749903038420,-406.0162744,0.00021933,4]
[365771954,1749903038430,-263.05001701,0.00021933,2]
[365771955,1749903038440,-282.24507458,0.00021936,4]
[365771956,1749903038449,-760.76926243,0.00022003,6]
[365771960,1749903040351,-424.40141186,0.00021932,2]
[365771961,1749903040360,-213.28201367,0.00021932,2]
[365771962,1749903040370,-160.0,0.00021932,2]
[365771963,1749903040380,-393.6949493,0.00022003,6]
[365771964,1749903040390,-950.97451456,0.00022107,6]
[365771965,1749903040402,-203.48969717,0.00022107,6]
[365771966,1749903040411,-460.0,0.00022191,4]
[365771967,1749903040420,-234.47956178,0.00022191,4]
[365771968,1749903040433,-424.28043822,0.00022191,4]
[365771969,1749903040443,-460.0,0.00022191,4]
[365771970,1749903040454,-460.0,0.00022191,4]
[365771971,1749903040464,-460.0,0.00022206,4]
[365771972,1749903040474,-460.0,0.00022206,4]
[365771973,1749903040483,-460.0,0.00022206,4]
[365771974,1749903040492,-460.0,0.00022206,4]
[365771975,1749903040502,-460.0,0.00022206,4]
[365771976,1749903040512,-192.8,0.00022206,4]
[365771977,1749903040522,-460.0,0.00022206,4]
[365771978,1749903040532,-460.0,0.00022206,4]
[365771979,1749903040542,-470.0,0.00022206,4]
[365771980,1749903040551,-441.22844063,0.00022206,4]
[365771981,1749903040560,-460.0,0.00022206,4]
[365771982,1749903040570,-587.6,0.00022206,4]
[365771983,1749903040580,-460.0,0.00022206,4]
[365771984,1749903040589,-460.0,0.00022206,4]
[365771985,1749903040599,-1154.46421173,0.0002221,6]
[365771986,1749903040609,-1154.46421173,0.00022314,7]
[365771987,1749903040618,-491.75805583,0.0002238,2]
[365772007,1749903046255,-8.24194417,0.0002238,2]
[365772008,1749903046264,-234.73867374,0.00022417,7]
[365772009,1749903103235,1917.45695497,0.0002,2]
[365772013,1749903213118,363.046098,0.00013699,2]
[365772018,1749903357090,163.83,0.00013699,2]
[365772019,1749903357463,163.83,0.00013699,2]
[365772020,1749903357830,163.83,0.00013699,2]
[365772021,1749903358710,163.86762248,0.00013699,2]
[365772029,1749903670880,651.43940335,0.00016938,2]
[365772042,1749903987354,-185.9680556,0.00019361,2]
[365772044,1749904030082,-1018.23082815,0.00019361,2]
[365772045,1749904030103,-164.61023874,0.00019557,2]
[365772046,1749904030124,-181.23601267,0.00019557,2]
[365772047,1749904030144,-92.54304503,0.0002,2]
[365772048,1749904030165,-363.046098,0.00020187,2]
[365772049,1749904030186,-200.64589,0.00020496,2]
[365772050,1749904030209,-534.0,0.00020637,2]
[365772051,1749904030231,-534.0,0.00020707,2]
[365772052,1749904030252,-534.0,0.0002071,2]
[365772053,1749904030274,-188.6381048,0.00021001,2]
[365772054,1749904040117,-180.008272,0.00020444,2]
[365772055,1749904040139,-345.3618952,0.00021001,2]
[365772056,1749904040160,-836.0,0.00021111,2]
[365772057,1749904040181,-534.0,0.00021126,2]
[365772058,1749904040202,-534.0,0.00021171,2]
[365772059,1749904040224,-534.0,0.00021193,2]
[365772060,1749904040244,-1254.01,0.00021578,2]
[365772061,1749904040265,-836.0,0.000216,2]
[365772062,1749904040286,-250.0,0.00021725,2]
[365772063,1749904040306,-300.0,0.00021824,2]
[365772064,1749904040328,-836.0,0.00021825,2]
[365772065,1749904040349,-166.03897149,0.00021844,2]
[365772066,1749904040370,-300.0,0.00021899,2]
[365772067,1749904040400,-1702.92430593,0.000219,6]
[365772068,1749904040421,-460.0,0.00021917,2]
[365772069,1749904040441,-84.27702621,0.00021936,4]
[365772070,1749904071373,-165.39116841,0.00018,2]
[365772075,1749904118408,-158.46845455,0.00018,2]
[365772076,1749904121338,151.0,0.0002,120]
[365772077,1749904122176,-166.7069979,0.00018,2]
[365772078,1749904129871,-1511.32269154,0.00018,2]
[365772079,1749904129893,-20861.91882481,0.00018,2]
[365772080,1749904129915,-10072.75848365,0.00018,2]
[365772081,1749904132380,3901.0474142,0.00018,2]
[365772082,1749904147215,-0.2102368,0.00018,2]
[365772083,1749904148858,2014.1851972,0.00018,2]
[365772084,1749904148883,2985.8148028,0.00018,2]
[365772085,1749904151144,-150.0,0.000198,2]
[365772086,1749904151165,-300.0,0.00020979,2]
[365772087,1749904151185,-1565.79872687,0.0002098,2]
[365772155,1749904236458,-4378.86644604,0.0002077,2]
[365772173,1749904236624,-621.13355396,0.0002077,2]
[365772175,1749904236636,-3783.6024488,0.00020929,2]
[365772177,1749904236646,-300.0,0.00020979,2]
[365772179,1749904236658,-300.0,0.00020979,2]
[365772181,1749904236668,-23334.20127313,0.0002098,2]
[365772183,1749904236679,-166.03897149,0.00021436,2]
[365772185,1749904236689,-1238.05,0.00021536,2]
[365772187,1749904236698,-424.40141186,0.00021896,2]
[365772189,1749904236708,-1646.16016237,0.000219,6]
[365772191,1749904236718,-160.0,0.0002192,2]
[365772193,1749904236728,-12533.30537164,0.0002192,2]
[365772195,1749904236737,-845.10789306,0.0002192,2]
[365772197,1749904236747,-229.82479369,0.0002192,2]
[365772200,1749904236757,-835.41710878,0.0002192,2]
[365772202,1749904236767,-160.0,0.0002192,2]
[365772204,1749904236776,-213.28201367,0.0002192,2]
[365772205,1749904236785,-160.0,0.0002192,2]
[365772208,1749904236794,-209.19251468,0.00021936,4]
[365772209,1749904236803,-460.0,0.00021936,4]
[365772212,1749904236814,-457.94991472,0.00021936,4]
[365772214,1749904236823,-5000.0,0.00021938,2]
[365772215,1749904236832,-202.08577092,0.00021941,4]
[365772218,1749904236842,-460.0,0.00021941,4]
[365772220,1749904236851,-645.26,0.00021941,4]
[365772222,1749904236861,-460.0,0.00021941,4]
[365772224,1749904236870,-460.0,0.00021941,4]
[365772226,1749904236880,-390.25,0.00021941,4]
[365772228,1749904236889,-460.0,0.00021941,4]
[365772229,1749904236899,-460.0,0.00021941,4]
[365772231,1749904236908,-460.0,0.00021941,4]
[365772233,1749904236918,-460.0,0.00021941,4]
[365772235,1749904236928,-460.0,0.00021942,4]
[365772238,1749904236937,-460.0,0.00021942,4]
[365772239,1749904236947,-460.0,0.00021942,4]
[365772241,1749904236957,-460.0,0.00021942,4]
[365772243,1749904236966,-460.0,0.00021942,4]
[365772246,1749904236976,-460.0,0.00021942,4]
[365772248,1749904236986,-343.42306226,0.00021942,4]
[365772250,1749904236997,-460.0,0.00021942,4]
[365772252,1749904237016,-460.0,0.00021942,4]
[365772254,1749904237027,-460.0,0.00021942,4]
[365772256,1749904237036,-460.0,0.00021942,4]
[365772257,1749904237045,-460.0,0.00021942,4]
[365772260,1749904237055,-460.0,0.00021942,4]
[365772262,1749904237064,-166.903,0.00021943,2]
[365772263,1749904237074,-460.0,0.00021943,4]
[365772266,1749904237085,-231.32013978,0.00021943,4]
[365772267,1749904237094,-460.0,0.00021943,2]
[365772269,1749904237104,-500.0,0.00022,2]
[365772271,1749904237114,-1646.16016232,0.00022003,6]
[365772273,1749904237124,-479.497458,0.00022082,2]
[365772275,1749904237133,-365.2762568,0.00022082,2]
[365772277,1749904237143,-365.2762568,0.00022082,2]
[365772280,1749904237153,-365.2762568,0.00022082,2]
[365772281,1749904237164,-1646.16016232,0.00022107,6]
[365772284,1749904237174,-2046.8474901,0.00022199,2]
[365772286,1749904237186,-6522.03340254,0.00022199,2]
[365772288,1749904237197,-4859.88819511,0.00022199,2]
[365772290,1749904237206,-4049.0,0.000222,2]
[365772292,1749904237215,-4049.0,0.000222,2]
[365772294,1749904237224,-4049.0,0.000222,2]
[365772296,1749904237233,-4049.0,0.000222,2]
[365772298,1749904237243,-4049.0,0.000222,2]
[365772299,1749904237252,-4049.0,0.000222,2]
[365772301,1749904237261,-4049.0,0.000222,2]
[365772304,1749904237272,-4049.0,0.000222,2]
[365772305,1749904237281,-1646.16016232,0.0002221,6]
[365772307,1749904237291,-460.0,0.00022215,4]
[365772309,1749904237301,-645.26,0.00022215,4]
[365772311,1749904237310,-460.0,0.00022215,4]
[365772313,1749904237320,-460.0,0.00022215,4]
[365772315,1749904237329,-460.0,0.00022215,4]
[365772317,1749904237338,-460.0,0.00022215,4]
[365772319,1749904237348,-460.0,0.00022215,4]
[365772321,1749904237358,-460.0,0.00022216,4]
[365772323,1749904237368,-594.06,0.00022216,4]
[365772325,1749904237378,-523.13650862,0.00022216,4]
[365772326,1749904237387,-460.0,0.00022216,4]
[365772327,1749904237397,-460.0,0.00022216,4]
[365772328,1749904237406,-460.0,0.00022217,4]
[365772329,1749904237416,-460.0,0.00022217,2]
[365772330,1749904237425,-1646.16016232,0.00022314,7]
[365772331,1749904237435,-836.0,0.00022403,2]
[365772332,1749904237444,-155.0,0.00022417,2]
[365772333,1749904237454,-1646.16016232,0.00022417,7]
[365772334,1749904237464,-397.69405856,0.00022443,2]
[365772335,1749904237473,-501.23081117,0.00022443,2]
[365772336,1749904237483,-500.0,0.00022443,2]
[365772337,1749904237493,-500.0,0.00022443,2]
[365772338,1749904237502,-500.0,0.00022443,2]
[365772339,1749904237512,-836.0,0.00022473,2]
[365772340,1749904237521,-500.0,0.00022483,2]
[365772341,1749904237531,-460.0,0.00022489,4]
[365772342,1749904237540,-645.26,0.00022489,4]
[365772343,1749904237550,-460.0,0.00022489,4]
[365772344,1749904237559,-460.0,0.00022489,4]
[365772345,1749904237569,-460.0,0.00022489,4]
[365772346,1749904237579,-460.0,0.00022489,4]
[365772347,1749904237588,-460.0,0.00022489,4]
[365772348,1749904237598,-460.0,0.0002249,4]
[365772349,1749904237607,-460.0,0.0002249,4]
[365772350,1749904237617,-460.0,0.00022491,4]
[365772351,1749904237627,-196.94998299,0.00022491,2]
[365772352,1749904237637,-1646.16016232,0.00022521,7]
[365772353,1749904237646,-500.0,0.0002254,2]
[365772354,1749904237656,-500.81929547,0.0002254,2]
[365772356,1749904237665,-1000.0,0.00022548,2]
[365772357,1749904237675,-1646.16016232,0.00022624,7]
[365772358,1749904237684,-1646.16016232,0.00022728,7]
[365772359,1749904237693,-598.01,0.00022763,4]
[365772360,1749904237703,-645.26,0.00022763,4]
[365772361,1749904237712,-460.0,0.00022763,4]
[365772363,1749904237722,-460.0,0.00022763,4]
[365772364,1749904237731,-490.87,0.00022763,4]
[365772365,1749904237740,-325.47,0.00022763,4]
[365772367,1749904237751,-460.0,0.00022763,4]
[365772369,1749904237761,-460.0,0.00022764,4]
[365772370,1749904237770,-460.0,0.00022764,4]
[365772371,1749904237780,-460.0,0.00022765,4]
[365772372,1749904237789,-153.0,0.00022767,2]
[365772373,1749904237798,-153.0,0.00022767,2]
[365772374,1749904237807,-420.0,0.00022821,2]
[365772375,1749904237816,-1646.16016232,0.00022831,8]
[365772376,1749904237827,-207.4,0.00022914,2]
[365772377,1749904237836,-5000.0,0.00022914,2]
[365772379,1749904237848,-1688.0,0.00022914,2]
[365772380,1749904237862,-1646.16016232,0.00022934,8]
[365772381,1749904237872,-884.586432,0.00022969,2]
[365772382,1749904237881,-1000.0,0.00022991,2]
[365772383,1749904237891,-1000.0,0.00022991,2]
[365772384,1749904237901,-1001.00948787,0.00023,30]
[365772385,1749904237911,-836.0,0.00023024,2]
[365772386,1749904237920,-505.3571264,0.00023031,2]
[365772387,1749904237930,-645.26,0.00023037,4]
[365772388,1749904237939,-344.89837659,0.00023037,4]
[365772389,1749904237949,-460.0,0.00023037,4]
[365772391,1749904237959,-460.0,0.00023037,4]
[365772393,1749904237968,-1646.16016232,0.00023038,8]
[365772395,1749904237978,-460.0,0.00023038,4]
[365772396,1749904237987,-460.0,0.00023038,4]
[365772397,1749904238000,-460.0,0.00023039,4]
[365772398,1749904238010,-1000.0,0.00023088,2]
[365772399,1749904238019,-1646.16016232,0.00023141,8]
[365772400,1749904238029,-1628.5390355,0.00023242,2]
[365772401,1749904238039,-1646.16016232,0.00023245,8]
[365772402,1749904238049,-255.8,0.0002325,3]
[365772403,1749904238059,-767.45,0.0002327,3]
[365772404,1749904238068,-511.6,0.0002328,3]
[365772405,1749904238077,-1023.21,0.0002329,3]
[365772406,1749904238087,-3000.0,0.000233,2]
[365772407,1749904238096,-500.0,0.00023309,2]
[365772408,1749904238105,-500.0,0.00023309,2]
[365772409,1749904238115,-500.0,0.00023309,2]
[365772411,1749904238124,-500.0,0.00023309,2]
[365772412,1749904238134,-500.0,0.00023309,2]
[365772413,1749904238143,-488.08861744,0.00023309,2]
[365772414,1749904238152,-500.0,0.00023309,2]
[365772415,1749904238162,-3000.0,0.0002331,2]
[365772416,1749904238171,-645.26,0.00023311,4]
[365772417,1749904238180,-460.0,0.00023311,4]
[365772418,1749904238189,-460.0,0.00023311,4]
[365772419,1749904238198,-460.0,0.00023312,4]
[365772420,1749904238207,-460.0,0.00023312,4]
[365772421,1749904238217,-460.0,0.00023313,4]
[365772422,1749904238227,-153.0,0.00023315,2]
[365772423,1749904238239,-153.0,0.00023315,2]
[365772424,1749904238248,-153.0,0.00023315,2]
[365772425,1749904238257,-153.0,0.00023315,2]
[365772426,1749904238267,-153.0,0.00023315,2]
[365772427,1749904238276,-153.0,0.00023315,2]
[365772428,1749904238286,-3000.0,0.0002332,2]
[365772429,1749904238295,-3000.0,0.0002333,2]
[365772430,1749904238305,-3000.0,0.0002334,2]
[365772431,1749904238315,-162.85516593,0.00023342,2]
[365772432,1749904238324,-1646.16016232,0.00023348,9]
[365772433,1749904238333,-3000.0,0.0002335,2]
[365772434,1749904238343,-500.0,0.00023359,2]
[365772435,1749904238352,-500.0,0.00023359,2]
[365772436,1749904238462,-160.0,0.00023359,2]
[365772437,1749904238472,-3000.0,0.0002336,2]
[365772438,1749904238482,-3000.0,0.0002337,2]
[365772439,1749904238491,-3000.0,0.0002338,2]
[365772440,1749904238500,-1628.53903548,0.00023382,2]
[365772441,1749904238510,-168.0,0.00023384,2]
[365772442,1749904238521,-3000.0,0.0002339,2]
[365772443,1749904238530,-3000.0,0.000234,2]
[365772444,1749904238539,-151.0,0.000234,8]
[365772445,1749904238548,-3000.0,0.0002341,2]
[365772446,1749904238558,-3000.0,0.0002342,2]
[365772447,1749904238567,-3000.0,0.0002343,2]
[365772448,1749904238576,-3000.0,0.0002344,2]
[365772449,1749904238586,-3000.0,0.0002345,2]
[365772450,1749904238596,-1646.16016232,0.00023452,9]
[365772451,1749904238605,-3000.0,0.0002346,2]
[365772452,1749904238615,-5000.0,0.00023462,2]
[365772453,1749904238624,-3000.0,0.0002347,2]
[365772454,1749904238634,-3000.0,0.0002348,2]
[365772455,1749904238643,-3000.0,0.0002349,2]
[365772456,1749904238653,-2476.09,0.00023494,2]
[365772457,1749904238663,-3000.0,0.000235,2]
[365772458,1749904238673,-610.01,0.000235,7]
[365772459,1749904238683,-151.0,0.000235,10]
[365772460,1749904238692,-964.0,0.000235,2]
[365772461,1749904238702,-405.0,0.000235,2]
[365772462,1749904238712,-836.0,0.00023507,2]
[365772463,1749904238722,-5966.593199,0.0002351,2]
[365772464,1749904238732,-1529.269178,0.0002352,3]
[365772465,1749904238741,-1628.53903548,0.00023521,2]
[365772466,1749904238751,-1500.0,0.00023539,2]
[365772467,1749904238761,-558.11,0.00023551,3]
[365772468,1749904238771,-1646.16016232,0.00023555,9]
[365772469,1749904238780,-200.0,0.00023561,4]
[365772470,1749904238789,-200.0,0.00023561,4]
[365772471,1749904238799,-200.0,0.00023561,4]
[365772472,1749904238808,-200.0,0.00023561,4]
[365772473,1749904238817,-200.0,0.00023561,4]
[365772474,1749904238827,-200.0,0.00023561,4]
[365772475,1749904238836,-201.55034724,0.0002358,4]
[365772476,1749904238845,-645.26,0.00023585,4]
[365772477,1749904238855,-460.0,0.00023585,4]
[365772478,1749904238864,-460.0,0.00023585,4]
[365772479,1749904238874,-460.0,0.00023586,4]
[365772480,1749904238883,-460.0,0.00023586,4]
[365772481,1749904238893,-460.0,0.00023587,4]
[365772482,1749904238902,-151.0,0.000236,5]
[365772483,1749904238911,-600.0,0.00023631,2]
[365772484,1749904238921,-500.0,0.00023636,2]
[365772485,1749904238930,-162.85516593,0.00023644,2]
[365772486,1749904238941,-1646.16016232,0.00023659,9]
[365772487,1749904238950,-1628.53903548,0.00023661,2]
[365772488,1749904238960,-3000.0,0.000237,2]
[365772489,1749904238969,-151.0,0.000237,6]
[365772490,1749904238979,-836.0,0.00023706,2]
[365772491,1749904238988,-3000.0,0.0002371,2]
[365772492,1749904239000,-3000.0,0.0002372,2]
[365772493,1749904239010,-150.0,0.00023724,2]
[365772494,1749904239019,-152.552,0.00023724,2]
[365772495,1749904239028,-250.0,0.00023724,2]
[365772496,1749904239039,-249.539,0.00023724,2]
[365772497,1749904239048,-258.421,0.00023724,2]
[365772498,1749904239058,-215.773,0.00023724,2]
[365772499,1749904239068,-3000.0,0.0002373,2]
[365772500,1749904239077,-836.0,0.00023736,2]
[365772501,1749904239086,-3000.0,0.0002374,2]
[365772502,1749904239095,-3000.0,0.0002375,2]
[365772503,1749904239105,-3000.0,0.0002376,2]
[365772504,1749904239115,-1646.16016232,0.00023762,9]
[365772505,1749904239124,-3000.0,0.0002377,2]
[365772506,1749904239133,-500.0,0.00023773,2]
[365772507,1749904239143,-500.0,0.00023773,2]
[365772508,1749904239151,-3000.0,0.0002378,2]
[365772509,1749904239161,-62327.41271964,0.00023788,2]
[365772510,1749904239205,-261.15,0.00023788,2]
[365772511,1749904239216,-291.33939998,0.00023788,2]
[365772512,1749904239227,-768.74579197,0.00023788,2]
[365772513,1749904239258,-158.46845455,0.00021917,4]
[365772514,1749904239267,-232.68915347,0.00022466,2]
[365772515,1749904239283,-267.31084653,0.00022466,2]
[365772516,1749904239292,-641.70811965,0.00023788,2]
[365772517,1749904239302,-151.0,0.00023788,7]
[365772518,1749904239312,-151.0,0.00023788,7]
[365772519,1749904239321,-3000.0,0.0002379,2]
[365772520,1749904239331,-420.0,0.00023799,2]
[365772521,1749904239340,-2435.5343529,0.000238,2]
[365772524,1749904240514,-235.45,0.0002219,10]
[365772525,1749904240524,-2160.0,0.000235,2]
[365772526,1749904240535,-564.4656471,0.000238,2]
[365772527,1749904240544,-3549.82122011,0.000238,7]
[365772534,1749904246163,-2110.65067694,0.000238,7]
[365772535,1749904246247,-11876.33915988,0.000238,7]
[365772544,1749904428306,353.215232,0.00013699,2]
[365772549,1749904756416,194.84232067,0.00016938,2]
[365772552,1749904853995,201.0,0.00024658,120]
[365772562,1749905235129,-854.67,0.00019669,6]
[365772563,1749905235151,-213.69524621,0.00019868,2]
[365772564,1749905235172,-160.0,0.00019951,2]
[365772565,1749905235193,-1122.87179217,0.0002017,2]
[365772566,1749905235214,-353.215232,0.00020187,2]
[365772567,1749905235247,-387.298265,0.0002044,2]
[365772568,1749905235271,-620.29891954,0.0002078,2]
[365772569,1749905235292,-1246.0982431,0.00021048,2]
[365772570,1749905235314,-321.9092121,0.00021105,2]